fUSD/lending_fUSD_20241018
["ID","MTS","AMOUNT","RATE_DAILY","PERIOD"]
[340418714,1729228247529,-500.0,0.00010958,2]
[340418715,1729228247541,-2270.01,0.00010958,2]
[340418716,1729228247550,-3925.98,0.00010958,2]
[340418717,1729228247558,-1361.7,0.00010958,2]
[340418718,1729228247567,-361.43324647,0.00010958,2]
[340418719,1729228247581,-138.56675353,0.00010958,2]
[340418720,1729228247590,-332.22720532,0.00010958,2]
[340418721,1729228247601,-1185.34288774,0.00010958,2]
[340418722,1729228247612,-684.77591474,0.00010958,2]
[340418723,1729228247633,-293.41970148,0.00010958,2]
[340418724,1729228247646,-250.0,0.00010958,2]
[340418725,1729228247662,-1180.21429072,0.00010958,2]
[340418726,1729228247671,-902.22930502,0.00010958,2]
[340418727,1729228248003,-523.94524405,0.00010958,2]
[340418728,1729228248015,-843.83545093,0.00010958,2]
[340418729,1729228248024,-500.0,0.00010958,2]
[340418730,1729228248033,-1928.90028649,0.00010958,2]
[340418731,1729228248052,-341.10971351,0.00010958,2]
[340418732,1729228248062,-1114.31938812,0.00010958,2]
[340418733,1729228248079,-400.07483383,0.00010958,2]
[340418734,1729228248090,-745.83403878,0.00010958,2]
[340418735,1729228248101,-1665.75173927,0.00010958,2]
[340418736,1729228248110,-1361.7,0.00010958,2]
[340418737,1729228248119,-500.0,0.00010958,2]
[340418738,1729228248129,-500.0,0.00010958,2]
[340418739,1729228248138,-1436.73938812,0.00010958,2]
[340418740,1729228248156,-833.27061188,0.00010958,2]
[340418741,1729228248166,-3925.98,0.00010958,2]
[340418742,1729228248175,-500.0,0.00010958,2]
[340418743,1729228248185,-1361.7,0.00010958,2]
[340418744,1729228248195,-500.0,0.00010958,2]
[340418745,1729228248204,-2270.05174399,0.00010958,2]
[340418746,1729228248213,-500.0,0.00010958,2]
[340418747,1729228248222,-500.0,0.00010958,2]
[340418748,1729228248231,-500.0,0.00010958,2]
[340418749,1729228248241,-500.0,0.00010958,2]
[340418750,1729228248250,-500.0,0.00010958,2]
[340418751,1729228248260,-500.0,0.00010958,2]
[340418752,1729228248269,-500.0,0.00010958,2]
[340418753,1729228248278,-3925.98,0.00010958,2]
[340418754,1729228248288,-500.0,0.00010958,2]
[340418755,1729228248297,-1361.7,0.00010958,2]
[340418756,1729228248307,-500.0,0.00010958,2]
[340418757,1729228248316,-500.0,0.00010958,2]
[340418758,1729228248325,-3925.98,0.00010958,2]
[340418759,1729228248334,-467.55158416,0.00010958,2]
[340418760,1729228248344,-588.2863439,0.00010958,2]
[340418761,1729228248353,-1361.7,0.00010958,2]
[340418762,1729228248363,-500.0,0.00010958,2]
[340418763,1729228248372,-3925.98,0.00010958,2]
[340418764,1729228248381,-500.0,0.00010958,2]
[340418765,1729228248390,-1361.7,0.00010958,2]
[340418766,1729228248399,-3925.98,0.00010958,2]
[340418767,1729228248408,-525.76478093,0.00010958,2]
[340418768,1729228248577,-3925.98,0.00010958,2]
[340418769,1729228248587,-3925.98,0.00010958,2]
[340418770,1729228248597,-1361.7,0.00010958,2]
[340418771,1729228248606,-500.0,0.00010958,2]
[340418772,1729228248626,-3925.98,0.00010958,2]
[340418773,1729228248635,-3925.98,0.00010958,2]
[340418774,1729228248645,-500.0,0.00010958,2]
[340418775,1729228248654,-500.0,0.00010958,2]
[340418776,1729228248664,-1361.7,0.00010958,2]
[340418777,1729228248673,-1832.06823751,0.00010958,2]
[340418778,1729228248735,-2093.91176249,0.00010958,2]
[340418779,1729228248744,-254.27323796,0.00010958,2]
[340418780,1729228248756,-245.72676204,0.00010958,2]
[340418781,1729228248765,-131.97322296,0.00010958,2]
[340418782,1729228248777,-368.02677704,0.00010958,2]
[340418783,1729228248787,-571.97322296,0.00010958,2]
[340418784,1729228249806,-2282.65677704,0.00010958,2]
[340418785,1729228249822,-500.0,0.00010958,2]
[340418786,1729228249837,-1361.7,0.00010958,2]
[340418787,1729228249848,-325.80322296,0.00010958,2]
[340418788,1729228249863,-174.19677704,0.00010958,2]
[340418789,1729228249875,-500.0,0.00010958,2]
[340418790,1729228249891,-500.0,0.00010958,2]
[340418791,1729228249905,-1830.75322396,0.00010958,2]
[340418792,1729228249933,-628.85675018,0.00010958,2]
[340418793,1729228249947,-395.02002586,0.00010958,2]
[340418794,1729228249960,-500.0,0.00010958,2]
[340418795,1729228249977,-500.0,0.00010958,2]
[340418796,1729228249991,-1667.15441854,0.00010958,2]
[340418797,1729228250009,-1309.9999992,0.00010958,2]
[340418798,1729228250024,-948.82558226,0.00010958,2]
[340418799,1729228250036,-500.0,0.00010958,2]
[340418800,1729228250048,-198.85331968,0.00010958,2]
[340418801,1729228250060,-1361.7,0.00010958,2]
[340418802,1729228250072,-500.0,0.00010958,2]
[340418803,1729228250086,-2854.63,0.00010958,2]
[340418804,1729228250099,-950.74109806,0.00010958,2]
[340418805,1729228250115,-651.80754886,0.00010958,2]
[340418806,1729228250130,-643.25283506,0.00010958,2]
[340418807,1729228250599,-730.92801407,0.00010958,2]
[340418808,1729228250651,-602.20218507,0.00010958,2]
[340418809,1729228250669,-347.04831888,0.00010958,2]
[340418810,1729228250682,-593.73,0.00010958,2]
[340418811,1729228250698,-2854.63,0.00010958,2]
[340418812,1729228250710,-593.73,0.00010958,2]
[340418813,1729228250725,-2735.86168112,0.00010958,2]
[340418814,1729228268821,781.8515,0.00010399,2]
[340418815,1729228293022,250.0,0.00010399,2]
[340418816,1729228460993,-53272.05529,0.00010957,7]
[340418817,1729228627771,2000.0,8.1e-05,2]
[340418818,1729228688467,575.04,0.00010123,2]
[340418819,1729228735636,407.75,8.219e-05,2]
[340418820,1729228755902,190.01,0.00010071,2]
[340418821,1729228829069,250.0,0.00010065,2]
[340418822,1729228839644,550.0,0.0001,2]
[340418823,1729229114333,500.0,0.00025,120]
[340418824,1729229127216,500.0,0.00025,120]
[340418825,1729229139090,500.0,0.00025,120]
[340418826,1729229149525,535.0,0.00025,120]
[340418828,1729229234114,-407.75,0.00010482,2]
[340418829,1729229234135,-150.0,0.00010482,2]
[340418830,1729229234158,-150.0,0.00010695,2]
[340418831,1729229234179,-163.59294037,0.000107,2]
[340418832,1729229234201,-2995.52369328,0.00010717,2]
[340418833,1729229246473,393.01,8.219e-05,2]
[340418834,1729229289223,2000.0,0.00021,30]
[340418839,1729229424356,250.0,9.934e-05,2]
[340418850,1729229431843,-393.01,0.00010472,2]
[340418851,1729229431852,-721.20455375,0.00010649,2]
[340418852,1729229431862,-150.0,0.00010724,2]
[340418853,1729229431871,-2459.09627869,0.00010748,2]
[340418854,1729229431907,-40522.94230308,0.00010748,2]
[340418855,1729229431916,-300.0,0.00010748,2]
[340418856,1729229431926,-150.0,0.00010748,2]
[340418857,1729229431935,-629.34839482,0.00010749,2]
[340418858,1729229431945,-150.0,0.00010769,2]
[340418859,1729229431959,-641.30445,0.000108,2]
[340418860,1729229431968,-150.0,0.00010817,2]
[340418861,1729229431978,-150.0,0.00010827,2]
[340418862,1729229431987,-150.0,0.00010851,2]
[340418863,1729229431996,-228.81565506,0.00010856,2]
[340418864,1729229432005,-5994.9219,0.00010857,2]
[340418865,1729229432015,-11903.1631,0.00010857,2]
[340418866,1729229432024,-150.888,0.00010858,2]
[340418867,1729229432033,-1037.8755,0.00010858,2]
[340418868,1729229432042,-1000.0,0.00010858,2]
[340418869,1729229432051,-1074.3724,0.00010858,2]
[340418870,1729229432060,-1000.0,0.00010858,2]
[340418871,1729229432070,-150.0,0.00010866,2]
[340418872,1729229432079,-352.52455903,0.00010899,2]
[340418873,1729229432090,-1201.33886668,0.00010899,2]
[340418874,1729229432099,-1553.86342571,0.00010899,2]
[340418875,1729229432108,-1553.86342571,0.00010899,2]
[340418876,1729229432118,-1553.86342571,0.00010899,2]
[340418877,1729229432128,-1553.86342571,0.00010899,2]
[340418878,1729229432137,-1553.86342571,0.00010899,2]
[340418879,1729229432146,-152.59719192,0.000109,2]
[340418880,1729229432155,-152.59719191,0.000109,2]
[340418881,1729229432164,-152.59719191,0.000109,2]
[340418882,1729229432174,-152.59719191,0.000109,2]
[340418883,1729229432183,-152.59719191,0.000109,2]
[340418884,1729229432192,-152.59719191,0.000109,2]
[340418885,1729229432202,-152.59719191,0.000109,2]
[340418886,1729229432211,-1553.86342571,0.000109,2]
[340418887,1729229432220,-150.0,0.00010903,2]
[340418888,1729229432229,-150.0,0.00010922,2]
[340418889,1729229432238,-150.0,0.00010938,2]
[340418890,1729229432247,-150.0,0.00010941,2]
[340418891,1729229432256,-2733.9128694,0.00010951,2]
[340418892,1729229432265,-567.0844745,0.00010951,2]
[340418893,1729229432274,-950.4488727,0.00010951,2]
[340418894,1729229432283,-37631.1239864,0.00010951,2]
[340418895,1729229432292,-1056.4470678,0.00010951,2]
[340418896,1729229432301,-500.0,0.00010958,2]
[340418897,1729229432310,-500.0,0.00010958,2]
[340418898,1729229432319,-500.0,0.00010958,2]
[340418899,1729229432329,-500.0,0.00010958,2]
[340418900,1729229432339,-500.0,0.00010958,2]
[340418901,1729229432348,-500.0,0.00010958,2]
[340418902,1729229432357,-500.0,0.00010958,2]
[340418903,1729229432366,-500.0,0.00010958,2]
[340418904,1729229432375,-500.0,0.00010958,2]
[340418905,1729229432384,-500.0,0.00010958,2]
[340418906,1729229432393,-500.0,0.00010958,2]
[340418907,1729229432402,-500.0,0.00010958,2]
[340418908,1729229432411,-500.0,0.00010958,2]
[340418909,1729229432420,-500.0,0.00010958,2]
[340418910,1729229432434,-500.0,0.00010958,2]
[340418911,1729229432443,-500.0,0.00010958,2]
[340418912,1729229432455,-500.0,0.00010958,2]
[340418913,1729229432464,-500.0,0.00010958,2]
[340418914,1729229432473,-500.0,0.00010958,2]
[340418915,1729229432482,-500.0,0.00010958,2]
[340418916,1729229432491,-216.44,0.00010958,2]
[340418917,1729229432500,-885.09,0.00010958,2]
[340418918,1729229432509,-885.09,0.00010958,2]
[340418919,1729229432518,-885.09,0.00010958,2]
[340418920,1729229432527,-885.09,0.00010958,2]
[340418921,1729229432537,-885.09,0.00010958,2]
[340418922,1729229432548,-885.09,0.00010958,2]
[340418923,1729229432557,-885.09,0.00010958,2]
[340418924,1729229432567,-885.09,0.00010958,2]
[340418925,1729229432576,-885.09,0.00010958,2]
[340418926,1729229432587,-885.09,0.00010958,2]
[340418927,1729229432596,-885.09,0.00010958,2]
[340418928,1729229432606,-885.09,0.00010958,2]
[340418929,1729229432798,-885.09,0.00010958,2]
[340418930,1729229432823,-885.09,0.00010958,2]
[340418931,1729229432832,-885.09,0.00010958,2]
[340418932,1729229432842,-885.09,0.00010958,2]
[340418933,1729229432853,-885.09,0.00010958,2]
[340418934,1729229432862,-885.09,0.00010958,2]
[340418935,1729229432871,-595.24461488,0.00010958,2]
[340418936,1729229432902,-289.84538512,0.00010958,2]
[340418937,1729229432915,-232.94661488,0.00010958,2]
[340418938,1729229432927,-412.95315396,0.00010958,2]
[340418939,1729229432940,-239.19023116,0.00010958,2]
[340418940,1729229432952,-498.60946234,0.00010958,2]
[340418941,1729229432965,-386.48053766,0.00010958,2]
[340418942,1729229432975,-885.09,0.00010958,2]
[340418943,1729229432984,-885.09,0.00010958,2]
[340418944,1729229432993,-885.12803883,0.00010958,2]
[340418945,1729229433003,-500.0,0.00010958,2]
[340418946,1729229433013,-154.21669422,0.00010958,2]
[340418947,1729229433033,-345.78330578,0.00010958,2]
[340418948,1729229433043,-50.69686594,0.00010958,2]
[340418949,1729229433061,-280.56667432,0.00010958,2]
[340418950,1729229433072,-168.73645974,0.00010958,2]
[340418951,1729229433081,-430.87662927,0.00010958,2]
[340418952,1729229433090,-500.0,0.00010958,2]
[340418953,1729229433099,-500.0,0.00010958,2]
[340418954,1729229433108,-500.0,0.00010958,2]
[340418955,1729229433118,-500.0,0.00010958,2]
[340418956,1729229433127,-500.0,0.00010958,2]
[340418957,1729229433136,-500.0,0.00010958,2]
[340418958,1729229433145,-500.0,0.00010958,2]
[340418959,1729229433155,-500.0,0.00010958,2]
[340418960,1729229433164,-500.0,0.00010958,2]
[340418961,1729229433173,-500.0,0.00010958,2]
[340418962,1729229433182,-500.0,0.00010958,2]
[340418963,1729229433192,-500.0,0.00010958,2]
[340418964,1729229433203,-500.0,0.00010958,2]
[340418965,1729229433212,-500.0,0.00010958,2]
[340418966,1729229433221,-500.0,0.00010958,2]
[340418967,1729229433231,-500.0,0.00010958,2]
[340418968,1729229433240,-500.0,0.00010958,2]
[340418969,1729229433249,-7.89409566,0.00010958,2]
[340418970,1729229433275,-479.16,0.00010958,2]
[340418972,1729229437863,-12.94590434,0.00010958,2]
[340418973,1729229437872,-500.0,0.00010958,2]
[340418974,1729229437882,-500.0,0.00010958,2]
[340418975,1729229437892,-500.0,0.00010958,2]
[340418976,1729229437901,-500.0,0.00010958,2]
[340418977,1729229437911,-648.60103616,0.00010958,2]
[340418978,1729229437920,-554.04984088,0.00010958,2]
[340418979,1729229437929,-1717.71,0.00010958,2]
[340418980,1729229437938,-1717.71,0.00010958,2]
[340418981,1729229437949,-1717.71,0.00010958,2]
[340418982,1729229437958,-1717.71,0.00010958,2]
[340418983,1729229437969,-1717.71,0.00010958,2]
[340418984,1729229437980,-1717.71,0.00010958,2]
[340418985,1729229437990,-500.0,0.00010958,2]
[340418986,1729229438000,-1717.71,0.00010958,2]
[340418987,1729229438009,-500.0,0.00010958,2]
[340418988,1729229438021,-1717.71,0.00010958,2]
[340418989,1729229438032,-500.0,0.00010958,2]
[340418990,1729229438043,-1717.71,0.00010958,2]
[340418991,1729229438053,-500.0,0.00010958,2]
[340418992,1729229438064,-1717.71,0.00010958,2]
[340418993,1729229438075,-1717.71,0.00010958,2]
[340418994,1729229438084,-500.0,0.00010958,2]
[340418995,1729229438094,-1717.71,0.00010958,2]
[340418996,1729229438103,-500.0,0.00010958,2]
[340418997,1729229438112,-1717.71,0.00010958,2]
[340418998,1729229438122,-500.0,0.00010958,2]
[340418999,1729229438131,-1717.71,0.00010958,2]
[340419000,1729229438140,-500.0,0.00010958,2]
[340419001,1729229438149,-227.65976008,0.00010958,2]
[340419002,1729229438174,-272.34023992,0.00010958,2]
[340419003,1729229438183,-797.75324014,0.00010958,2]
[340419004,1729229438212,-848.28346848,0.00010958,2]
[340419005,1729229438223,-71.67329138,0.00010958,2]
[340419006,1729229438232,-500.0,0.00010958,2]
[340419007,1729229438241,-500.0,0.00010958,2]
[340419008,1729229438251,-203.93451888,0.00010958,2]
[340419009,1729229438306,-1223.06036169,0.00010958,2]
[340419010,1729229438318,-267.86768875,0.00010958,2]
[340419011,1729229438330,-22.84743068,0.00010958,2]
[340419012,1729229438342,-500.0,0.00010958,2]
[340419013,1729229438352,-372.62349569,0.00010958,2]
[340419014,1729229438362,-942.88554838,0.00010958,2]
[340419015,1729229438378,-774.82445162,0.00010958,2]
[340419016,1729229438388,-500.0,0.00010958,2]
[340419017,1729229438400,-1717.71,0.00010958,2]
[340419018,1729229438412,-515.97315665,0.00010958,2]
[340419019,1729229438422,-1717.71,0.00010958,2]
[340419020,1729229438434,-1717.71,0.00010958,2]
[340419021,1729229438444,-1717.71,0.00010958,2]
[340419022,1729229438455,-1717.71,0.00010958,2]
[340419023,1729229438464,-1717.71,0.00010958,2]
[340419024,1729229438475,-1717.93039673,0.00010958,2]
[340419025,1729229438486,-500.0,0.00010958,2]
[340419026,1729229438497,-500.0,0.00010958,2]
[340419027,1729229438509,-500.0,0.00010958,2]
[340419028,1729229438520,-500.0,0.00010958,2]
[340419029,1729229438530,-500.0,0.00010958,2]
[340419030,1729229438544,-500.0,0.00010958,2]
[340419032,1729229438554,-500.0,0.00010958,2]
[340419034,1729229438563,-500.0,0.00010958,2]
[340419036,1729229438572,-500.0,0.00010958,2]
[340419038,1729229438582,-500.0,0.00010958,2]
[340419040,1729229438591,-500.0,0.00010958,2]
[340419042,1729229438600,-500.0,0.00010958,2]
[340419044,1729229438609,-500.0,0.00010958,2]
[340419046,1729229438618,-582.64072479,0.00010958,2]
[340419047,1729229438627,-500.0,0.00010958,2]
[340419048,1729229438636,-500.0,0.00010958,2]
[340419049,1729229438645,-500.0,0.00010958,2]
[340419050,1729229438654,-500.0,0.00010958,2]
[340419051,1729229438663,-500.0,0.00010958,2]
[340419052,1729229438672,-500.0,0.00010958,2]
[340419053,1729229438681,-500.0,0.00010958,2]
[340419054,1729229438691,-500.0,0.00010958,2]
[340419055,1729229438700,-539.98171751,0.00010958,2]
[340419056,1729229438709,-95.35974906,0.00010958,2]
[340419059,1729229439850,-171.84317116,0.00010958,2]
[340419060,1729229439861,-499.15682884,0.00010958,2]
[340419061,1729229439915,-0.84317116,0.00010958,2]
[340419062,1729229439926,-500.0,0.00010958,2]
[340419063,1729229439935,-500.0,0.00010958,2]
[340419064,1729229439945,-500.0,0.00010958,2]
[340419065,1729229439959,-500.0,0.00010958,2]
[340419066,1729229439968,-500.0,0.00010958,2]
[340419067,1729229439977,-500.0,0.00010958,2]
[340419068,1729229439986,-398.24186923,0.00010958,2]
[340419069,1729229439996,-1193.89,0.00010958,2]
[340419070,1729229440005,-1193.89,0.00010958,2]
[340419071,1729229440014,-1193.89,0.00010958,2]
[340419072,1729229440024,-1193.89,0.00010958,2]
[340419073,1729229440034,-1174.41,0.00010958,2]
[340419074,1729229440043,-1193.89,0.00010958,2]
[340419075,1729229440052,-1174.41,0.00010958,2]
[340419076,1729229440062,-1193.89,0.00010958,2]
[340419077,1729229440071,-1174.41,0.00010958,2]
[340419078,1729229440081,-1193.89,0.00010958,2]
[340419079,1729229440091,-90.28127653,0.00010958,2]
[340419080,1729229440111,-528.55,0.00010958,2]
[340419081,1729229440122,-555.57872347,0.00010958,2]
[340419082,1729229440131,-1193.89,0.00010958,2]
[340419083,1729229440140,-1174.41,0.00010958,2]
[340419084,1729229440150,-836.12127653,0.00010958,2]
[340419085,1729229440162,-338.28872347,0.00010958,2]
[340419086,1729229440171,-965.21127628,0.00010958,2]
[340419087,1729229440201,-228.67872372,0.00010958,2]
[340419088,1729229440210,-496.99619236,0.00010958,2]
[340419089,1729229440222,-677.41380764,0.00010958,2]
[340419090,1729229440231,-1193.89,0.00010958,2]
[340419091,1729229440240,-1174.41,0.00010958,2]
[340419092,1729229440249,-1193.89,0.00010958,2]
[340419093,1729229440259,-1174.41,0.00010958,2]
[340419094,1729229440269,-1193.89,0.00010958,2]
[340419095,1729229440278,-1174.41,0.00010958,2]
[340419096,1729229440287,-1193.89,0.00010958,2]
[340419097,1729229440296,-1174.41,0.00010958,2]
[340419098,1729229440305,-1193.89,0.00010958,2]
[340419099,1729229440314,-1174.41,0.00010958,2]
[340419100,1729229440323,-1193.89,0.00010958,2]
[340419101,1729229440332,-1174.41,0.00010958,2]
[340419102,1729229440342,-1193.89,0.00010958,2]
[340419103,1729229440352,-1174.41,0.00010958,2]
[340419104,1729229440361,-1193.89,0.00010958,2]
[340419105,1729229440370,-1174.41,0.00010958,2]
[340419106,1729229440379,-1193.89,0.00010958,2]
[340419107,1729229440388,-1174.41,0.00010958,2]
[340419108,1729229440397,-1193.89,0.00010958,2]
[340419109,1729229440406,-1174.41,0.00010958,2]
[340419110,1729229440415,-1193.89,0.00010958,2]
[340419111,1729229440424,-1174.41,0.00010958,2]
[340419112,1729229440432,-1193.89,0.00010958,2]
[340419113,1729229440441,-1174.41,0.00010958,2]
[340419114,1729229440451,-1193.89,0.00010958,2]
[340419115,1729229440459,-1174.41,0.00010958,2]
[340419116,1729229440468,-1193.89,0.00010958,2]
[340419117,1729229440477,-1194.02176613,0.00010958,2]
[340419118,1729229440486,-1174.41,0.00010958,2]
[340419119,1729229440496,-1174.41,0.00010958,2]
[340419120,1729229440505,-1174.41,0.00010958,2]
[340419121,1729229440514,-1174.54777563,0.00010958,2]
[340419122,1729229440523,-921.25,0.00010958,2]
[340419123,1729229440532,-921.25,0.00010958,2]
[340419124,1729229440546,-540.54974442,0.00010958,2]
[340419125,1729229440555,-500.0,0.00010958,2]
[340419126,1729229440564,-921.25,0.00010958,2]
[340419127,1729229440572,-921.25,0.00010958,2]
[340419128,1729229440582,-500.0,0.00010958,2]
[340419129,1729229440591,-921.25,0.00010958,2]
[340419130,1729229440600,-500.0,0.00010958,2]
[340419131,1729229440609,-921.25,0.00010958,2]
[340419132,1729229440621,-61.47432405,0.00010958,2]
[340419133,1729229440652,-438.52567595,0.00010958,2]
[340419134,1729229440661,-921.25,0.00010958,2]
[340419135,1729229440670,-538.06612185,0.00010958,2]
[340419136,1729229440679,-921.25,0.00010958,2]
[340419137,1729229440688,-921.25,0.00010958,2]
[340419138,1729229440697,-701.0463522,0.00010958,2]
[340419140,1729229442858,-220.2036478,0.00010958,2]
[340419141,1729229442868,-73.24635201,0.00010958,2]
[340419142,1729229443084,-946.0,0.00010574,2]
[340419144,1729229445779,-54.0,0.00010574,2]
[340419145,1729229445790,-219.1997132,0.00010951,2]
[340419146,1729229445801,-339.278472,0.00010951,2]
[340419147,1729229445891,-5797.127376,0.00010951,2]
[340419148,1729229445901,-426.75364799,0.00010958,2]
[340419149,1729229445911,-921.25,0.00010958,2]
[340419150,1729229445920,-223.49896781,0.00010958,2]
[340419151,1729229445956,-276.50103219,0.00010958,2]
[340419152,1729229445966,-500.0,0.00010958,2]
[340419153,1729229445975,-500.0,0.00010958,2]
[340419154,1729229445985,-276.22396781,0.00010958,2]
[340419155,1729229446082,-223.77603219,0.00010958,2]
[340419156,1729229446092,-219.8843312,0.00010958,2]
[340419157,1729229446103,-500.0,0.00010958,2]
[340419158,1729229446112,-500.0,0.00010958,2]
[340419159,1729229446122,-500.0,0.00010958,2]
[340419160,1729229446131,-500.0,0.00010958,2]
[340419161,1729229446141,-499.1515235,0.00010958,2]
[340419162,1729229446151,-500.0,0.00010958,2]
[340419163,1729229446160,-500.0,0.00010958,2]
[340419164,1729229446170,-921.25,0.00010958,2]
[340419165,1729229446179,-500.0,0.00010958,2]
[340419166,1729229446188,-921.25,0.00010958,2]
[340419168,1729229446198,-500.0,0.00010958,2]
[340419170,1729229446207,-921.25,0.00010958,2]
[340419172,1729229446217,-500.0,0.00010958,2]
[340419173,1729229446226,-500.0,0.00010958,2]
[340419175,1729229446237,-500.0,0.00010958,2]
[340419178,1729229446247,-500.0,0.00010958,2]
[340419180,1729229446256,-921.25,0.00010958,2]
[340419181,1729229446265,-500.0,0.00010958,2]
[340419204,1729229446492,-500.0,0.00010958,2]
[340419206,1729229446502,-500.0,0.00010958,2]
[340419208,1729229446512,-921.25,0.00010958,2]
[340419210,1729229446521,-500.0,0.00010958,2]
[340419212,1729229446531,-500.0,0.00010958,2]
[340419214,1729229446545,-468.54789343,0.00010958,2]
[340419216,1729229446555,-921.25,0.00010958,2]
[340419218,1729229446564,-500.0,0.00010958,2]
[340419220,1729229446574,-921.25,0.00010958,2]
[340419222,1729229446585,-500.0,0.00010958,2]
[340419224,1729229446594,-921.25,0.00010958,2]
[340419226,1729229446604,-921.25,0.00010958,2]
[340419228,1729229446614,-500.0,0.00010958,2]
[340419230,1729229446625,-921.25,0.00010958,2]
[340419232,1729229446636,-500.0,0.00010958,2]
[340419234,1729229446645,-921.25,0.00010958,2]
[340419236,1729229446655,-500.0,0.00010958,2]
[340419238,1729229446664,-574.8598511,0.00010958,2]
[340419240,1729229446674,-921.25,0.00010958,2]
[340419242,1729229446683,-500.0,0.00010958,2]
[340419244,1729229446693,-921.45701706,0.00010958,2]
[340419246,1729229446703,-239.70429523,0.00010958,2]
[340419248,1729229446713,-1045.04,0.00010958,2]
[340419250,1729229446723,-1045.04,0.00010958,2]
[340419252,1729229446733,-1045.04,0.00010958,2]
[340419254,1729229446743,-1045.04,0.00010958,2]
[340419256,1729229446752,-1045.04,0.00010958,2]
[340419258,1729229446762,-1243.1,0.00010958,2]
[340419260,1729229446772,-1045.04,0.00010958,2]
[340419262,1729229446782,-1243.1,0.00010958,2]
[340419264,1729229446791,-1207.59,0.00010958,2]
[340419266,1729229446800,-1243.1,0.00010958,2]
[340419268,1729229446809,-1045.04,0.00010958,2]
[340419270,1729229446819,-1207.59,0.00010958,2]
[340419272,1729229446828,-1243.1,0.00010958,2]
[340419274,1729229446838,-1045.04,0.00010958,2]
[340419276,1729229446848,-1207.59,0.00010958,2]
[340419278,1729229446858,-1243.1,0.00010958,2]
[340419280,1729229446869,-1045.04,0.00010958,2]
[340419282,1729229446879,-1207.59,0.00010958,2]
[340419284,1729229446888,-1243.1,0.00010958,2]
[340419286,1729229446898,-1045.04,0.00010958,2]
[340419288,1729229446907,-1243.1,0.00010958,2]
[340419290,1729229446917,-1207.59,0.00010958,2]
[340419292,1729229446927,-1045.04,0.00010958,2]
[340419294,1729229446936,-1207.59,0.00010958,2]
[340419296,1729229446947,-1243.1,0.00010958,2]
[340419298,1729229446957,-1045.04,0.00010958,2]
[340419300,1729229446967,-1243.1,0.00010958,2]
[340419302,1729229446977,-1207.59,0.00010958,2]
[340419304,1729229446987,-1045.04,0.00010958,2]
[340419305,1729229446997,-1207.59,0.00010958,2]
[340419306,1729229447007,-1243.1,0.00010958,2]
[340419307,1729229447017,-1045.04,0.00010958,2]
[340419308,1729229447027,-1243.1,0.00010958,2]
[340419309,1729229447036,-1207.59,0.00010958,2]
[340419310,1729229447046,-1045.04,0.00010958,2]
[340419311,1729229447055,-1243.1,0.00010958,2]
[340419312,1729229447064,-1207.59,0.00010958,2]
[340419313,1729229447074,-1045.04,0.00010958,2]
[340419314,1729229447083,-1207.59,0.00010958,2]
[340419315,1729229447093,-1243.1,0.00010958,2]
[340419316,1729229447103,-1045.04,0.00010958,2]
[340419317,1729229447112,-1207.59,0.00010958,2]
[340419318,1729229447122,-1243.1,0.00010958,2]
[340419319,1729229447132,-1207.59,0.00010958,2]
[340419320,1729229447142,-1243.1,0.00010958,2]